Cogmind - Beta 15 @@@ ROGUE MODE // 2025.07.07 @ 22:08:16 Player: mEkbOk Result: Destroyed by Autobeam Turret with Autobeam Performance ------------- Evolutions (0) 0 Regions Visited (2) 400 Robots Destroyed (19) 95 Value Destroyed (499) 499 Prototype IDs (0) 0 Alien Tech Used (0) 0 Bonus (0) 0 TOTAL SCORE: 994 Bonus ------- None Cogmind --------- Core Integrity 0/250 Matter 280/300 Energy 250/250 System Corruption 0% Temperature Cool (6) Movement Walking (120) Location -10/Subcaves Parts ------- > --- POWER (1) -------- Ion Engine > --- PROPULSION (2) --- Aluminum Leg Aluminum Leg > --- UTILITY (2) ------ Improved Heat Sink Sensor Array > --- WEAPON (2) ------- Medium Laser Small Laser > --- INVENTORY (5) ---- Ion Engine Heat Sink EM Pulse Gun Peak State ------------ > --- POWER ------------ Ion Engine > --- PROPULSION ------- Light Treads Light Treads > --- UTILITY ---------- Improved Heat Sink Small Storage Unit > --- WEAPON ----------- Small Laser Small Laser > --- INVENTORY -------- Ion Engine Ion Engine Aluminum Leg Aluminum Leg Wheel Compact Wheel Heat Sink Medium Laser [Rating: 9] Favorites ----------- Power Ion Engine Engine Ion Engine Propulsion Light Treads Treads Light Treads Leg Aluminum Leg Utility Small Storage Unit Device Improved Heat Sink Storage Small Storage Unit Weapon Small Laser Energy Gun Small Laser Ballistic Gun Light Assault Rifle Build | -11 -10 -10 ------- Run | Yrd Mat Sub Slots Evolved . | . . . Power . | . . . Propulsion . | . . . Utility . | . . . Weapon . | . . . Parts Attached 22 | 6 13 3 Power 6 | 1 4 1 Engine 6 | 1 4 1 Core . | . . . Reactor . | . . . Propulsion 4 | 2 . 2 Treads 2 | 2 . . Leg 2 | . . 2 Wheel . | . . . Hover . | . . . Flight . | . . . Utility 5 | 1 4 . Device 4 | . 4 . Storage 1 | 1 . . Processor . | . . . Hackware . | . . . Protection . | . . . Artifact . | . . . Weapon 7 | 2 5 . Energy Gun 5 | . 5 . Energy Cannon . | . . . Ballistic Gun 2 | 2 . . Ballistic Cannon . | . . . Launcher . | . . . Special Weapon . | . . . Impact Weapon . | . . . Slashing Weapon . | . . . Piercing Weapon . | . . . Special Melee Weapon . | . . . Unidentified Prototypes . | . . . Parts Lost 3 | . 1 2 Power . | . . . Propulsion 2 | . . 2 Utility . | . . . Weapon 1 | . 1 . Highest Loss Streak 2 | . 1 2 To Critical Strikes . | . . . Average Backups 6 | 4 6 5 Power 1 | . 1 1 Propulsion 3 | 2 3 2 Utility . | . . 1 Weapon 1 | 1 . 1 Tool/Special . | . . . Unused Backups 6 | . 3 3 Power 2 | . 1 1 Propulsion 2 | . 2 . Utility 1 | . . 1 Weapon 1 | . . 1 Tool/Special . | . . . Average Slot Usage (%) 94 | . 94 91 Engine 14 | . 14 14 Treads 26 | . 28 17 Device 16 | . 14 28 Storage 7 | . 8 . Energy Gun 22 | . 22 28 Ballistic Gun 5 | . 5 . Peak Build Rating 9 | 6 9 9 Average Rating 7 | 4 7 8 On Entrance 5 | . 6 9 Naked Turns . | . . . Heaviest Build 13 | 11 13 10 Greatest Support 40 | 40 40 40 Greatest Overweight (x) 3 | 1 . 3 Average Overweight (x) . | . . . Largest Inventory Capacity 8 | 8 8 5 Average Capacity 6 | 7 6 5 Most Carried 8 | 7 8 5 Average Carried 6 | 4 6 4 Final Capacity 8 | 8 5 5 Final Carried 6 | 6 5 3 Class Distribution -------------------- 79% | Mutant 20% | Scavenger-Mutant Dominant Class ---------------- Mutant | -10/Materials Mutant | -10/Subcaves Resources | -11 -10 -10 ----------- Run | Yrd Mat Sub Matter Collected 431 | 205 206 20 Remotely . | . . . Salvage Created 602 | . 518 84 Parts 41 | . 36 5 Haulers Intercepted . | . . . Recyclers Shooed . | . . . Parts Field Recycled . | . . . Retrieved Matter . | . . . Parts Self-Destructed 9 | . . 9 Prevented . | . . . Kills | -11 -10 -10 ------- Run | Yrd Mat Sub Combat Hostiles Destroyed 17 | . 14 3 Guns 17 | . 14 3 Classes Destroyed 5 | . 4 1 Worker 1 | . 1 . Watcher 1 | . 1 . Swarmer 5 | . 3 2 Grunt 11 | . 11 . Sentry 1 | . . 1 Best Kill Streak 7 | . 7 2 Combat Bots Only 6 | . 6 2 Max Kills in Single Turn 2 | . 2 1 Gunslinging . | . . . Exploded . | . . . Melee . | . . . Uniques/NPCs Destroyed . | . . . Combat | -11 -10 -10 -------- Run | Yrd Mat Sub Hostile Shots Fired 126 | . 94 32 Missed 41 | . 29 12 Hits 85 | . 65 20 Projectile 85 | . 65 20 Critical Strikes 2 | . . 2 Damage Taken 990 | . 790 200 Core 250 | . 210 40 Absorbed by Shields . | . . . Core Remaining (%) 100 | 100 . . Volleys Fired 63 | . 57 6 Largest 2 | . 2 2 Hottest 90 | . 90 90 Shots Fired 116 | . 104 12 Gun 116 | . 104 12 Cannon . | . . . Launcher . | . . . Special . | . . . Kinetic 36 | . 36 . Thermal 80 | . 68 12 Explosive . | . . . Electromagnetic . | . . . Robot Hit Streak 9 | . 9 3 Robot Miss Streak 6 | . 6 2 Penetration Max . | . . . Secondary Targets 4 | . 4 . Max Gunslinging Chain 1 | . 1 . Shots Hit Robots 71 | . 65 6 Core Hits 33 | . 29 4 Critical Kills . | . . . Critical Parts Destroyed . | . . . Critical Strikes . | . . . Melee Attacks . | . . . Impact . | . . . Slashing . | . . . Piercing . | . . . Sneak Attacks . | . . . Combat Hostiles . | . . . Follow-up Attacks . | . . . Damage Inflicted 723 | . 654 69 Guns 723 | . 654 69 Cannons . | . . . Explosions . | . . . Melee . | . . . Ramming . | . . . Kinetic 134 | . 134 . Thermal 589 | . 520 69 Explosive . | . . . Electromagnetic . | . . . Impact . | . . . Slashing . | . . . Piercing . | . . . Highest Corruption . | . . . Average Corruption . | . . . Corruption Purged . | . . . Corruption Blocked . | . . . Overload Shots . | . . . Overflow Damage . | . . . Projectiles . | . . . Explosions . | . . . Melee . | . . . Knockbacks . | . . . Impact . | . . . Kinetic . | . . . Secondary . | . . . Self-Inflicted Damage . | . . . Shots . | . . . Rammed . | . . . Targets Rammed . | . . . Kicked . | . . . Crushed . | . . . Highest Temperature 134 | . 134 3 Average Temperature 38 | . 38 3 Received Heat Transfer 420 | . 327 93 Siege Activations . | . . . Martial Activations . | . . . Shielding Activations . | . . . Robots Disrupted . | . . . Combat Hostiles . | . . . Robots Corrupted . | . . . Combat Hostiles . | . . . Parts Fried . | . . . Impact Corruptions . | . . . Robots Melted . | . . . Combat Hostiles . | . . . Parts Melted 1 | . 1 . Heat Transferred 1471 | . 1285 186 Parts Sabotaged . | . . . Parts Stolen . | . . . Parts Stripped . | . . . Power Chain Reactions . | . . . Alert | -11 -10 -10 ------- Run | Yrd Mat Sub Maximum Alert Level . | . . . Low Security (%) 100 | 100 100 . Level 1 . | . . . Level 2 . | . . . Level 3 . | . . . Level 4 . | . . . Level 5 . | . . . High Security . | . . . Max Security . | . . . Peak Influence 135 | . 135 . Initial . | . . . Average 55 | . 60 . Influence Increases 470 | . 380 90 Destroy 0b10 Robot/C 340 | . 280 60 Destroy 0b10 Robot/NC 10 | . 10 . Destroy Leader 52 | . 52 . Successful Hack 23 | . 23 . Lose Combat Pursuer 45 | . 15 30 Influence Decreases 410 | . 357 53 Entered New Map 12 | . . 12 Time Decay 388 | . 357 31 Lost Part 10 | . . 10 Squads Dispatched 3 | . 3 . Investigation 2 | . 2 . Extermination . | . . . Reinforcement 1 | . 1 . Assault . | . . . Garrison . | . . . Intercept . | . . . Searches Triggered . | . . . Construction Impeded . | . . . Haulers Reinforced . | . . . Active Scanning Responses . | . . . Cargo Convoy Interrupts . | . . . Stealth | -11 -10 -10 --------- Run | Yrd Mat Sub Distress Signals 2 | . 2 . Communications Jammed . | . . . Distress Signals . | . . . Times Spotted 26 | . 21 5 Peak Tracking Total 4 | . 4 3 Tactical Retreats 2 | . 1 1 Traps | -11 -10 -10 ------- Run | Yrd Mat Sub Traps Triggered . | . . . Indirectly . | . . . Trap Hack Attempts . | . . . Triggered . | . . . Disarmed 4 | . 4 . Reprogrammed . | . . . Reused . | . . . Traps Extracted . | . . . Installed . | . . . Triggered . | . . . Machines | -11 -10 -10 ---------- Run | Yrd Mat Sub Machines Disabled . | . . . Max in Single Turn . | . . . Machines Repaired . | . . . Machines Dismantled . | . . . Machines Sabotaged . | . . . Overloaded Fab Kills . | . . . Hacking | -11 -10 -10 --------- Run | Yrd Mat Sub Machines Accessed 5 | . 5 . Terminals 5 | . 5 . Fabricators . | . . . Repair Stations . | . . . Recycling Units . | . . . Scanalyzers . | . . . Garrison Access . | . . . Total Hacks 17 | . 17 . Successful 10 | . 10 . Failed 7 | . 7 . Catastrophic 1 | . 1 . Database Lockouts . | . . . Manual 15 | . 15 . Terminals 17 | . 17 . Fabricators . | . . . Repair Stations . | . . . Recycling Units . | . . . Scanalyzers . | . . . Garrison Access . | . . . Terminal Hacks 8 | . 8 . Terminal Index 1 | . 1 . Recycling Unit Index 1 | . 1 . Scanalyzer Index 1 | . 1 . Locate Traps 3 | . 3 . Disarm Traps 1 | . 1 . Dispatch Records 1 | . 1 . Fabricator Hacks . | . . . Repair Station Hacks . | . . . Recycling Unit Hacks . | . . . Scanalyzer . | . . . Garrison Access Hacks . | . . . Unauthorized Hacks 2 | . 2 . Terminals 2 | . 2 . Track 2 | . 2 . Fabricators . | . . . Repair Stations . | . . . Recycling Units . | . . . Scanalyzers . | . . . Garrison Access . | . . . Data Cores Recovered . | . . . Used . | . . . Hacking Detections 5 | . 5 . Full Trace Events 2 | . 2 . Feedback Events . | . . . Feedback Blocked . | . . . Robot Schematics Acquired . | . . . Robots Built . | . . . Authchips . | . . . Time . | . . . Total Robot Build Rating . | . . . Part Schematics Acquired . | . . . Parts Built . | . . . Authchips . | . . . Time . | . . . Total Part Build Rating . | . . . Parts Repaired . | . . . Time . | . . . Parts Recycled . | . . . Recycled Matter . | . . . Retrieved Matter . | . . . Retrieved Components . | . . . Parts Scanalyzed . | . . . Part Schematics Acquired . | . . . Parts Damaged . | . . . Bothacking | -11 -10 -10 ------------ Run | Yrd Mat Sub Used RIF Installer . | . . . Robots Hacked . | . . . Non-combat . | . . . Combat . | . . . Robot Hacks Applied . | . . . Relay Couplers Released . | . . . Fabnet Peak Effective % . | . . . Robots Rewired . | . . . Allies Hacked . | . . . Hacks Repelled . | . . . Allies | -11 -10 -10 -------- Run | Yrd Mat Sub Total Allies . | . . . Largest Group . | . . . Highest-Rated Group . | . . . Highest-Rated Ally . | . . . Total Orders . | . . . Ally Attacks . | . . . Total Damage . | . . . Kills . | . . . Allies Corrupted . | . . . Allies Melted . | . . . Intel | -11 -10 -10 ------- Run | Yrd Mat Sub Active Infowar (turns) 526 | . 413 113 Sensors 526 | . 413 113 Robot Analysis Total . | . . . Derelict Logs Recovered . | . . . Drone Launches . | . . . Drone Recoveries . | . . . Exploration | -11 -10 -10 ------------- Run | Yrd Mat Sub Turns Passed 1263 | 98 1052 113 Spaces Moved 638 | 62 520 56 Core 19 | 17 . 2 Treads 613 | 45 520 48 Legs 6 | . . 6 Wheels . | . . . Hover . | . . . Flight . | . . . Fastest Speed 50 | 50 160 120 Average Speed 156 | 131 160 157 Slowest Speed 200 | 160 160 200 Overloaded Moves . | . . . Propulsion Burnouts . | . . . Robots Hopped . | . . . Potential Cave-ins . | . . . Cave-ins Triggered . | . . . Exploration Rate (%) 34 | 6 90 6 Regions Visited 2 Branch Regions 1 Pre-discovered Areas . | . . . Known Exits Taken . | . . . Unknown Exits Taken 2 | 1 1 . Scrap Searched . | . . . Spaces Dug . | . . . Terrain Destroyed . | . . . Melee . | . . . Projectile . | . . . AOE . | . . . Terrain Rammed . | . . . Walls Destroyed . | . . . Machines Disabled . | . . . Actions | -11 -10 -10 --------- Run | Yrd Mat Sub Total 802 | 78 655 69 Wait 47 | . 44 3 Move 636 | 61 519 56 Hop . | . . . Pick Up 19 | 11 8 . Fast Attach 3 | 1 2 . Attach 8 | 5 1 2 Detach . | . . . Swap 11 | . 10 1 Drop 15 | . 14 1 Fire 63 | . 57 6 Melee . | . . . Ram . | . . . Kick . | . . . Crush . | . . . Escape Stasis . | . . . Rewire . | . . . Trap . | . . . Miscellaneous . | . . . Route ------- -11/Scrapyard -10/Materials (discovered 4 exits: [*Mat x2] / [*Min] / [*Sub]) -10/Subcaves (discovered 2 exits: [*Mat] / [*Rec]) History --------- Turn | Location | Event 13 | -11/Scrapyard | Discovered new exit (range 15) 99 | -11/Scrapyard | Entered Materials 100 | -10/Materials | Met a group of wandering Federalists 162 | -10/Materials | Lost 3 allies 312 | -10/Materials | Build established: Mutant 476 | -10/Materials | Core integrity fell below 50% 837 | -10/Materials | Discovered new exit (range 4) 929 | -10/Materials | Core integrity fell below 20% 992 | -10/Materials | Discovered new exit (range 3) 1039 | -10/Materials | Discovered new exit (range 8) 1139 | -10/Materials | Discovered new exit (range 7) 1151 | -10/Materials | Entered Subcaves 1152 | -10/Subcaves | Continued accompanying wandering Federalists (3) 1152 | -10/Subcaves | Approached by a straggling Scientist 1204 | -10/Subcaves | Discovered new exit (range 15) 1209 | -10/Subcaves | Discovered new exit (range 12) 1225 | -10/Subcaves | Lost 3 allies 1264 | -10/Subcaves | Destroyed by Autobeam Turret with Autobeam Last Messages --------------- 01190_ WP-47M(g): "We could head over to Recycling and return via the Scraplab, but it would be faster if we could just find that shortcut." K6-6UG(c): "I think it's somewhere northwest of here" 01203_ Subatomizers dissect the Aluminum Leg. 01204_ EXIT=FOUND 01207_ Dropped Ion Engine. 01209_ Acquired 20 matter. 01209_ EXIT=FOUND 01209_ Lgt. Treads destroyed. 01213_ Subatomizers dissect the Aluminum Leg. 01218_ S-10 Pest destroyed. 01223_ Lgt. Ion Engine fries itself beyond repair. 01230_ Critical hit (Burn: +37). 01238_ Lgt. Treads destroyed. 01239_ S-10 Pest destroyed. 01247_ Critical hit (Burn: +37). 01252_ Y-45 Defender destroyed. K6-6UG(c): "I think it's somewhere northwest of here" 01256_ Flight Unit fries itself beyond repair. 01262_ Lgt. Armor Plating fries itself beyond repair. Map ----- +----------------------------------------------------+ | ?????????????????????????????????????????????????? | | ?????????????????????????????????????????????????? | | ?????????????????????????????????????????????????? | | ?????????????????????????????????????????????????? | | ?????????????????????????????????????????????????? | | ?????????????????????????????????????????????????? | | ?????????????????????????????????????????????????? | | ?????????????????????????????????????????????????? | | ?????????????????????????????????????????????????? | | ?????????????????????????????????????????????????? | | ?????????????????????????????????????????????????? | | ????###########??????????????????????????????????? | | ???## ## ##?????????????????????????????????? | | ???# #?????????????????????????????????? | | ???# ######??#######???????????????????? | | ???# ### #### ##??????????????????? | | ???# ##?## #??????????????????? | | ???####???## #####??????????????? | | ???????????#### #??????????????? | | ??????????????## # # # #?????????????? | | ???????????????####%## #??? ???????????????? | | ??????#" #####*%###% ##??????????????????????? | | ??????#"" %%[=## c ###????????????????????? | | ?????#< % =[ = ## ##???????????????????? | | ?????##"" [* ### #?????????????? | | ??????#" ### @ #????????????? | | ??????#" ???## #???????????? | | ??????#""" ?????## #???????????? | | ???????##????????# [% ##???????????? | | ?????????????????# ##????????????? | | ?????????????????# #?????????????? | | ???????????????? $ ????????????? | | ??????????????? # ## ???????????? | | ????????????? # # #?# ???????????? | | ?????????????#?# #?? ## #???????????? | | ???????????????#? < #??? #? ????????????? | | ???????????????? #???##??? ????????????? | | ???????????????? #?????????????????????? | | ??????????????????## ??????????????????????? | | ????????????????????? ??????????????????????? | | ??????????????????????? ??????????????????????? | | ?????????????????????????????????????????????????? | | ?????????????????????????????????????????????????? | | ?????????????????????????????????????????????????? | | ?????????????????????????????????????????????????? | | ?????????????????????????????????????????????????? | | ?????????????????????????????????????????????????? | | ?????????????????????????????????????????????????? | | ?????????????????????????????????????????????????? | | ?????????????????????????????????????????????????? | +----------------------------------------------------+ Best States ------------- Heat Dissipation 39 Energy Generation 10 Energy Capacity 250 Matter Stores 300 Matter Capacity 300 Sight Range 16 Robot Scan Range 14 Terrain Scan Density 10 Evasion (%) 50 Recoil Reduction 2 Item Schematics ----------------- None Robot Schematics ------------------ None Fabricated ------------ Nothing Repaired ---------- Nothing Alien Tech Used ----------------- None Achievements -------------- None Challenges ------------ None Game ------ Seed ChipMappingKinecellerator Manual? 0 Play Time 00:18:26 Cumulative 22.4 hours Start 2025.07.07 @ 21:51:27 End 2025.07.07 @ 22:08:16 Sessions 1 Manual Loads 0 Difficulty Rogue Special Mode None Game No. 18 Rogue 18 Adventurer 0 Explorer 0 Win Type - Total 0 Types 0/0/0/0/0/0/0/0/0/0 Lore% 23 Gallery% 18 Achievement% 19 Wizard Run 0 Options --------- Layout 0 ASCII 0 Keyboard 0 Movement Mouse Keybinds 0 Fullscreen 2 Font 24/Smallcaps Map View 76x50 Zoom Use 0% Tactical HUD 1 Map Filters NONE Filters NONE Steam 1 RUN: 46ebe0d1-c138-4177-a333-e97a22c76db2